bitfinex/quotes_ETHUSD_20240602
["timestamp","ask_amount","ask_price","bid_price","bid_amount"]
[1717319653112,2.2598,3795.7,3795.0,0.6203698]
[1717319653296,2.2598,3795.7,3795.4,0.554]
[1717319653498,2.63449,3795.8,3795.4,0.554]
[1717319653719,2.2598,3795.7,3795.0,0.6203698]
[1717319653939,2.2598,3795.7,3795.4,0.554]
[1717319654147,4.89429,3795.8,3795.4,0.554]
[1717319654433,4.89429,3795.8,3794.7,3.0]
[1717319654599,4.89429,3795.8,3794.6,2.4612]
[1717319654600,4.89429,3795.8,3795.5,0.554]
[1717319654804,2.63449,3795.8,3795.5,0.554]
[1717319655021,2.63425,3796.2,3795.7,0.554]
[1717319655203,2.63435,3796.0,3794.8,2.63512]
[1717319655460,2.63435,3796.0,3795.6,0.554]
[1717319655803,2.63435,3796.0,3795.8,0.554]
[1717319656049,2.63435,3796.0,3795.1,2.63497]
[1717319656348,2.63435,3796.0,3795.8,0.554]
[1717319656989,0.0873016,3795.9,3795.8,0.554]
[1717319657641,4.89394,3796.3,3795.8,0.554]
[1717319657642,2.63414,3796.3,3795.8,0.554]
[1717319657962,2.63414,3796.3,3796.2,0.554]
[1717319658702,2.63414,3796.3,3795.5,2.4612]
[1717319658894,2.63414,3796.3,3796.2,0.554]
[1717319659309,2.63414,3796.3,3796.1,0.554]
[1717319659740,2.63414,3796.3,3795.6,0.509596]
[1717319659937,2.63414,3796.3,3796.0,0.554]
[1717319660516,2.63414,3796.3,3796.2,0.554]
[1717319660709,2.63414,3796.3,3796.1,0.554]
[1717319661210,2.63414,3796.3,3795.6,0.509596]
[1717319661456,2.63414,3796.3,3796.0,0.554]
[1717319661653,2.63414,3796.3,3796.2,0.554]
[1717319661810,2.63414,3796.3,3795.7,0.3144356]
[1717319662012,2.63414,3796.3,3796.0,0.554]
[1717319662860,2.63392,3796.7,3796.2,0.554]
[1717319663064,2.63414,3796.3,3795.3,2.3771]
[1717319663282,2.63414,3796.3,3795.5,2.63464]
[1717319663411,2.63414,3796.3,3796.2,0.554]
[1717319663608,7.32,3797.0,3796.2,0.554]
[1717319663827,2.63405,3796.5,3796.2,0.554]
[1717319664014,2.63405,3796.5,3795.5,5.01174]
[1717319664213,2.63425,3796.2,3795.9,0.554]
[1717319664512,2.63425,3796.2,3795.1,2.63493]
[1717319664713,2.20217664,3797.1,3795.1,2.63493]
[1717319664714,9.954,3796.5,3796.1,0.554]
[1717319665013,0.0873998,3796.4,3796.3,0.554]
[1717319665516,0.0873998,3796.4,3795.5,2.63466]
[1717319665517,2.63417,3796.3,3795.5,2.63466]
[1717319665753,2.4656,3796.2,3795.6,0.501176]
[1717319665916,2.55306262,3796.2,3796.1,0.554]
[1717319666255,0.08746262,3796.2,3796.1,0.554]
[1717319666412,2.63417,3796.3,3796.1,0.554]
[1717319666778,2.4656,3796.1,3795.6,0.501176]
[1717319666984,0.08746548,3796.2,3796.0,0.554]
[1717319667183,2.63417,3796.3,3796.0,0.554]
[1717319668030,2.63433,3796.1,3795.1,2.898393]
[1717319668276,2.63433,3796.1,3795.7,0.554]
[1717319668481,2.63449,3795.8,3795.1,2.6349]
[1717319668687,2.63449,3795.8,3795.5,0.554]
[1717319669363,2.63449,3795.8,3795.7,0.554]
[1717319669746,2.63421,3796.3,3795.7,0.554]
[1717319670065,2.63421,3796.3,3795.1,0.47138371]
[1717319670066,2.6344,3796.0,3795.1,0.47138371]
[1717319670231,2.6344,3796.0,3795.9,0.554]
[1717319670431,2.63414,3796.3,3795.9,0.554]
[1717319670651,2.63414,3796.3,3796.1,0.554]
[1717319671765,2.63437,3796.0,3795.8,0.554]
[1717319672314,0.08730695,3795.9,3795.8,0.554]
[1717319672808,2.63436,3796.0,3795.8,0.554]
[1717319672955,2.4656,3795.9,3795.8,0.554]
[1717319673272,2.63449,3795.8,3795.7,0.554]
[1717319673669,2.72185108,3795.8,3795.0,2.3771]
[1717319673883,2.72185108,3795.8,3795.6,0.554]
[1717319674397,2.72185108,3795.8,3795.1,0.501214]
[1717319674398,0.08736108,3795.8,3795.1,0.501214]
[1717319674599,0.08736108,3795.8,3795.6,0.554]
[1717319674802,0.56952055,3796.5,3795.6,0.554]
[1717319674973,2.4656,3796.6,3795.8,0.554]
[1717319675295,0.65697474,3796.5,3795.2,2.3771]
[1717319675467,0.65697474,3796.5,3795.7,0.554]
[1717319675468,2.6343,3796.1,3795.7,0.554]
[1717319675872,1.64817664,3796.7,3794.3,3.0]
[1717319675873,2.63442,3795.9,3794.9,2.3771]
[1717319676076,0.08737495,3796.0,3795.7,0.554]
[1717319676281,2.63427,3796.2,3795.9,0.554]
[1717319676464,0.08735808,3795.9,3795.0,2.3771]
[1717319676664,2.63441,3796.0,3795.8,0.554]
[1717319677260,2.63441,3796.0,3795.3,2.3771]
[1717319677460,2.63441,3796.0,3795.8,0.554]
[1717319677966,2.63441,3796.0,3795.3,2.878294]
[1717319677967,5.10001,3796.0,3795.2,2.63484]
[1717319678315,2.63441,3796.0,3795.9,0.554]
[1717319678473,2.63441,3796.0,3795.2,2.63484]
[1717319678666,2.63441,3796.0,3795.9,0.554]
[1717319679060,2.63441,3796.0,3795.2,3.136034]
[1717319679299,2.63441,3796.0,3795.8,0.554]
[1717319679896,2.63441,3796.0,3795.2,2.63484]
[1717319680105,2.63441,3796.0,3795.9,0.554]
[1717319680470,2.63441,3796.0,3795.7,0.554]
[1717319681181,2.63441,3796.0,3795.9,0.554]
[1717319681582,8.97132183,3796.5,3795.9,0.554]
[1717319681898,0.56952309,3796.4,3795.8,0.554]
[1717319682102,2.63441,3796.0,3795.2,2.63484]
[1717319682273,2.63457,3795.7,3794.9,2.6351]
[1717319682463,2.63457,3795.7,3795.6,0.554]
[1717319682661,1.65132183,3796.2,3795.2,2.63489]
[1717319682863,1.65132183,3796.3,3795.6,0.554]
[1717319683093,2.63442,3796.0,3795.6,0.554]
[1717319683260,2.3481,3795.9,3795.4,0.554]
[1717319683464,2.3481,3795.9,3794.5,0.62377535]
[1717319683465,2.63469,3795.5,3794.5,3.25916535]
[1717319683768,2.63469,3795.5,3795.0,0.554]
[1717319683964,2.63469,3795.5,3794.6,0.58467475]
[1717319684200,2.63469,3795.5,3795.1,0.554]
[1717319684376,2.63469,3795.5,3794.6,0.58467475]
[1717319684712,2.63469,3795.5,3795.2,0.554]
[1717319685005,2.63469,3795.5,3794.8,2.63515]
[1717319685211,2.63469,3795.5,3795.4,0.554]
[1717319685368,2.63469,3795.5,3795.3,0.554]
[1717319686694,1.65132183,3795.8,3795.3,0.554]
[1717319686880,2.63457,3795.7,3795.0,2.63499]
[1717319687087,2.72175231,3795.7,3795.3,0.554]
[1717319687471,2.63476,3795.4,3795.3,0.554]
[1717319687784,0.08718231,3795.7,3795.3,0.554]
[1717319687971,2.72189169,3795.4,3794.5,5.2601]
[1717319688173,2.63476,3795.4,3794.6,0.789554]
[1717319688408,0.08711482,3795.3,3794.6,0.789554]
[1717319688612,0.08711482,3795.3,3795.2,0.554]
[1717319688793,2.63472,3795.5,3794.8,2.63517]
[1717319688996,2.63472,3795.5,3795.4,0.554]
[1717319689198,1.65132183,3795.7,3795.4,0.554]
[1717319689417,1.65132183,3795.7,3794.8,2.63517]
[1717319689621,1.65132183,3795.7,3795.5,0.554]
[1717319690042,1.65132183,3795.8,3795.1,2.63495]
[1717319690345,1.65132183,3795.8,3795.6,0.554]
[1717319690642,4.27464214,3796.1,3795.4,2.63473]
[1717319690643,2.63431,3796.1,3795.4,2.63473]
[1717319690860,2.63431,3796.1,3795.7,0.554]
[1717319690861,1.65132183,3796.1,3795.7,0.554]
[1717319691069,1.65132183,3796.1,3795.9,0.554]
[1717319691344,6.63373183,3796.1,3795.8,0.554]
[1717319691505,4.28563183,3796.1,3795.8,0.554]
[1717319691697,4.28563183,3796.1,3795.2,2.2601]
[1717319691893,4.28563183,3796.1,3795.8,0.554]
[1717319692098,1.65132183,3796.0,3795.8,0.554]
[1717319692543,4.28563183,3796.1,3795.8,0.554]
[1717319693107,1.65132183,3796.0,3795.8,0.554]
[1717319693327,1.65132183,3796.0,3795.3,2.63481]
[1717319693513,1.65132183,3796.0,3795.8,0.554]
[1717319694543,2.63442,3795.9,3795.6,0.554]
[1717319695052,1.65132183,3795.9,3795.7,0.554]
[1717319696151,4.28579183,3795.9,3795.7,0.554]
[1717319696800,1.7386403,3795.8,3795.7,0.554]
[1717319697007,1.7386403,3795.8,3795.0,2.63503]
[1717319697243,1.7386403,3795.8,3795.6,0.554]
[1717319697399,0.08731847,3795.8,3795.6,0.554]
[1717319698546,2.43541847,3795.8,3795.6,0.554]
[1717319698851,0.08731847,3795.8,3795.6,0.554]
[1717319699520,0.08731847,3795.8,3795.3,2.2601]
[1717319699721,1.657012,3795.9,3795.7,0.554]
[1717319700056,1.657012,3795.9,3795.4,0.5684513]
[1717319700234,1.657012,3795.9,3795.8,0.554]
[1717319700803,4.98252,3795.9,3795.7,0.554]
[1717319701040,1.657012,3796.0,3795.7,0.554]
[1717319701199,1.657012,3795.9,3795.4,2.63471]
[1717319701403,1.657012,3796.1,3795.9,0.554]
[1717319701627,2.63435,3796.0,3795.4,2.63471]
[1717319701834,0.08735807,3795.9,3795.8,0.554]
[1717319702246,0.08735807,3795.9,3795.8,3.0461]
[1717319702449,1.657012,3796.1,3795.8,0.554]
[1717319702618,1.657012,3796.1,3796.0,0.554]
[1717319702823,1.657012,3796.3,3796.0,0.554]
[1717319703060,1.657012,3796.3,3796.2,0.554]
[1717319703247,1.657012,3796.4,3796.2,0.554]
[1717319703652,1.657012,3796.5,3796.2,0.554]
[1717319703808,1.657012,3796.5,3796.4,0.554]
[1717319704247,1.657012,3796.5,3795.8,2.63442]
[1717319704476,1.657012,3796.5,3796.3,0.554]
[1717319704680,4.291082,3796.5,3795.8,2.63444]
[1717319704823,4.291082,3796.5,3796.2,0.554]
[1717319705023,1.657012,3796.4,3796.2,0.554]
[1717319705252,4.291082,3796.5,3796.2,0.554]
[1717319706463,4.291082,3796.5,3796.4,0.554]
[1717319706846,4.291082,3796.5,3795.8,2.63444]
[1717319707054,2.63407,3796.5,3796.4,0.554]
[1717319707252,1.657012,3796.6,3796.4,0.554]
[1717319707964,1.657012,3796.5,3796.4,0.554]
[1717319708133,1.657012,3796.6,3796.4,0.554]
[1717319708340,2.634,3796.5,3795.8,2.63444]
[1717319708551,2.634,3796.5,3795.5,5.12679]
[1717319708751,2.3097,3796.4,3795.9,0.554]
[1717319708961,1.657012,3796.4,3796.3,0.554]
[1717319709161,3.966712,3796.5,3796.3,0.554]
[1717319709328,3.966712,3796.5,3796.1,0.554]
[1717319709535,3.966712,3796.5,3796.3,0.554]
[1717319710386,6.600762,3796.5,3796.3,0.554]
[1717319710597,6.600762,3796.5,3796.1,0.554]
[1717319710931,4.291062,3796.5,3796.1,0.554]
[1717319711151,1.657012,3796.4,3796.3,0.554]
[1717319711326,4.291062,3796.5,3795.9,0.263444]
[1717319711530,4.291062,3796.5,3796.3,0.554]
[1717319711833,2.63405,3796.5,3796.3,0.554]
[1717319714259,1.657012,3796.6,3796.3,0.554]
[1717319714454,1.657012,3796.7,3796.5,0.554]
[1717319714656,1.657012,3796.7,3795.9,0.263444]
[1717319714866,1.657012,3796.7,3796.5,0.554]
[1717319715267,1.657012,3796.9,3796.5,0.554]
[1717319715579,2.6336,3797.1,3796.7,0.554]
[1717319715580,1.657012,3797.1,3796.7,0.554]
[1717319715779,1.657012,3797.2,3797.0,0.554]
[1717319715982,1.657012,3797.4,3797.1,2.63358]
[1717319716139,1.657012,3797.8,3797.3,0.554]
[1717319716341,1.657012,3797.9,3797.7,0.554]
[1717319716564,2.6331,3797.8,3797.7,0.554]
[1717319716934,2.71573718,3797.8,3797.7,0.554]
[1717319717143,0.08263718,3797.8,3797.7,0.554]
[1717319717575,0.08263718,3797.8,3797.4,2.63335]
[1717319717576,2.63288,3798.2,3797.5,1.329]
[1717319717746,0.08281812,3797.8,3797.5,1.329]
[1717319717946,2.63288,3798.2,3797.5,1.725235]
[1717319718165,1.93318066,3798.6,3797.5,1.725235]
[1717319718166,0.08280127,3797.7,3797.6,2.4921]
[1717319718464,4.289592,3798.6,3797.6,2.4921]
[1717319718780,0.08316652,3798.5,3797.7,0.6850685]
[1717319720482,2.63272,3798.4,3797.7,0.6850685]
[1717319720871,0.08309272,3798.3,3797.7,0.6850685]
[1717319721256,0.08309272,3798.3,3797.9,1.329]
[1717319721444,0.08309272,3798.3,3797.7,0.6850685]
[1717319721445,2.63271,3798.4,3797.5,0.396235]
[1717319721648,0.08310216,3798.3,3797.6,1.329]
[1717319721951,2.63284,3798.2,3797.6,1.329]
[1717319722459,0.08313479,3798.1,3797.6,1.329]
[1717319722789,2.63257,3798.6,3797.7,0.4358585]
[1717319722992,0.08311794,3798.0,3797.7,0.4358585]
[1717319723217,2.63257,3798.6,3797.7,0.4358585]
[1717319723437,0.08310109,3797.9,3797.7,0.4358585]
[1717319723587,2.63257,3798.6,3797.8,0.21610935]
[1717319724424,2.63257,3798.6,3797.9,2.3423]
[1717319725222,2.63257,3798.6,3797.8,0.21610935]
[1717319726120,2.63279,3798.3,3797.8,0.21610935]
[1717319726325,2.63248,3798.7,3797.6,2.63321]
[1717319727023,2.63248,3798.7,3797.7,2.3423]
[1717319727225,2.63284,3798.2,3797.5,0.396235]
[1717319727424,5.01304,3798.2,3797.5,0.396235]
[1717319727738,5.01304,3798.2,3797.6,0.4725235]
[1717319728028,2.3802,3798.6,3797.6,3.1057135]
[1717319728426,2.63262,3798.5,3797.6,0.4725235]
[1717319728599,2.6329,3798.1,3797.4,1.329]
[1717319728799,2.63226,3799.1,3796.7,2.3423]
[1717319728800,2.3802,3798.6,3796.7,2.3423]
[1717319729001,2.3802,3797.9,3796.4,3.96303]
[1717319729229,2.3802,3797.9,3796.5,0.396303]
[1717319729458,2.3802,3797.9,3796.4,1.329]
[1717319729611,2.6332,3797.7,3796.8,2.63375]
[1717319729995,2.63293,3798.1,3796.8,2.63375]
[1717319730232,9.7002,3798.4,3796.8,2.63375]
[1717319730411,2.63312,3797.8,3796.9,0.396275]
[1717319731021,2.63312,3797.8,3797.0,2.63363]
[1717319731562,2.63312,3797.8,3796.9,3.396275]
[1717319731705,2.63312,3797.8,3796.9,0.396275]
[1717319732044,2.63332,3797.5,3796.9,0.396275]
[1717319732228,2.63332,3797.5,3797.0,0.3396275]
[1717319732552,0.10886385,3797.4,3797.0,0.3396275]
[1717319733970,2.74227385,3797.4,3796.7,3.0]
[1717319734245,2.74227385,3797.4,3794.8,15.51363894]
[1717319734246,2.63341,3797.4,3796.5,2.63397]
[1717319734448,0.10879002,3797.3,3796.5,2.63397]
[1717319734751,5.01378,3797.2,3796.1,4.97657]
[1717319734899,5.01378,3797.2,3796.3,0.66713]
[1717319734900,2.63358,3797.2,3796.3,0.66713]
[1717319735218,2.63366,3797.0,3796.4,0.300943]
[1717319735753,0.10871604,3796.9,3796.0,2.63429]
[1717319735915,2.6338,3796.8,3796.0,2.63429]
[1717319736123,0.10871604,3796.9,3796.0,2.63429]
[1717319736448,2.3802,3797.7,3796.0,2.63429]
[1717319736630,2.3802,3797.7,3795.6,3.6713]
[1717319736631,2.3802,3797.7,3796.2,2.6342]
[1717319736942,2.63369,3797.0,3796.1,0.263429]
[1717319737143,2.63369,3797.0,3795.9,3.0]
[1717319737447,2.63381,3796.8,3796.0,2.63428]
[1717319737643,2.63381,3796.8,3796.1,3.0]
[1717319737844,0.10860222,3796.7,3795.6,6.30587]
[1717319738019,0.10860222,3796.7,3795.7,3.630587]
[1717319738224,2.63381,3796.8,3795.7,3.630587]
[1717319738225,2.63381,3796.8,3796.0,2.63434]
[1717319738428,2.63398,3796.6,3795.7,0.630587]
[1717319738953,2.63417,3796.3,3795.7,0.630587]
[1717319739167,2.63417,3796.3,3795.1,2.63495]
[1717319739307,0.10832779,3796.2,3795.4,2.63474]
[1717319739527,2.3802,3796.7,3795.4,2.63474]
[1717319739727,5.0141,3796.7,3795.6,2.63458]
[1717319740027,2.63417,3796.3,3795.5,0.263474]
[1717319740334,2.63417,3796.3,3795.3,3.0]
[1717319740335,0.10819399,3796.2,3795.3,3.0]
[1717319740676,0.10819399,3796.2,3795.4,2.63473]
[1717319740834,0.10819399,3796.2,3795.7,2.63455]
[1717319741030,2.63411,3796.4,3795.8,0.563455]
[1717319741353,2.63411,3796.4,3795.3,2.63479]
[1717319741354,2.3802,3796.3,3795.4,3.0]
[1717319741551,2.48829916,3796.3,3795.5,0.3]
[1717319741893,2.48829916,3796.3,3795.1,2.63492]
[1717319741894,2.63426,3796.2,3795.1,2.63492]
[1717319742194,0.10809916,3796.3,3795.4,2.63474]
[1717319742470,0.10813992,3796.2,3794.8,2.3423]
[1717319742673,5.3068,3796.9,3795.0,1.329]
[1717319742877,2.63435,3796.0,3795.1,0.36713]
[1717319743033,0.10807715,3795.9,3795.1,0.36713]
[1717319743370,2.63394,3796.6,3795.5,2.63467]
[1717319743735,0.10811157,3796.5,3795.5,2.63467]
[1717319744078,2.63419,3796.3,3795.6,0.396367]
[1717319744277,2.63446,3795.9,3795.1,0.36713]
[1717319744431,0.10794993,3795.8,3795.1,0.36713]
[1717319744791,0.10794993,3795.8,3795.4,2.63472]
[1717319744947,0.10794993,3795.8,3795.5,0.263472]
[1717319745283,0.10806603,3795.7,3795.6,2.63462]
[1717319745498,0.10806603,3795.7,3795.5,0.263472]
[1717319745499,2.6345,3795.8,3795.5,0.263472]
[1717319745627,4.9413,3795.8,3795.0,3.0]
[1717319745852,0.10806603,3795.7,3795.0,2.63499]
[1717319746058,7.32,3796.5,3795.1,0.563499]
[1717319746274,3.0,3796.9,3795.3,2.63477]
[1717319746275,0.1081679,3796.4,3795.3,2.63477]
[1717319746502,2.3068,3796.8,3795.3,6.34027]
[1717319746706,0.10815173,3796.3,3795.6,2.63459]
[1717319746884,2.3068,3796.8,3795.6,2.63459]
[1717319746885,2.63402,3796.5,3795.6,2.63459]
[1717319747083,2.41493555,3796.2,3795.4,0.6903769]
[1717319747264,2.41493555,3796.2,3795.0,2.63499]
[1717319747475,2.3068,3796.2,3795.0,2.63499]
[1717319747691,1.657012,3797.0,3795.0,2.63499]
[1717319747692,0.10806241,3796.1,3795.5,2.63463]
[1717319748100,2.63394,3796.6,3795.8,2.63448]
[1717319748285,0.10806903,3796.0,3795.3,0.634049]
[1717319748492,2.63417,3796.3,3794.4,2.63541]
[1717319748493,2.63417,3796.3,3795.2,2.63489]
[1717319748696,2.63435,3796.0,3795.1,1.329]
[1717319749011,2.63435,3796.0,3794.8,2.63514]
[1717319749012,0.10810139,3796.2,3795.3,2.6348]
[1717319749224,0.10805286,3795.9,3795.3,2.6348]
[1717319749525,0.10811355,3795.8,3795.6,2.63456]
[1717319749728,0.10811355,3795.8,3795.6,0.263456]
[1717319749909,2.63434,3796.1,3795.2,2.63484]
[1717319750225,2.63394,3796.6,3795.5,2.63462]
[1717319750377,0.10817153,3796.0,3795.6,0.501112]
[1717319750567,2.63394,3796.6,3795.6,0.501112]
[1717319750893,2.3068,3796.9,3795.6,0.501112]
[1717319751090,2.63388,3796.7,3795.7,2.63455]
[1717319751411,2.63405,3796.5,3795.7,2.63455]
[1717319751774,2.63415,3796.3,3795.3,2.6348]
[1717319752293,0.10817541,3796.2,3795.2,1.329]
[1717319752503,0.10817541,3796.2,3795.7,2.63451]
[1717319752710,2.63402,3796.5,3795.3,2.79409014]
[1717319753016,2.3068,3796.9,3795.5,2.63467]
[1717319753017,0.108145,3796.1,3795.5,2.63467]
[1717319753188,2.63399,3796.6,3795.5,2.63467]
[1717319753396,0.10812883,3796.0,3795.5,2.63467]
[1717319753576,0.10812883,3796.0,3795.4,0.27940901]
[1717319753577,2.63399,3796.6,3795.7,2.63454]
[1717319754205,0.10630953,3796.5,3795.7,2.63454]
[1717319754370,2.63409,3796.4,3795.6,0.30733792]
[1717319754572,2.63409,3796.4,3795.3,0.15930014]
[1717319754810,0.10629427,3796.3,3795.3,1.48830014]
[1717319755112,0.10629427,3796.3,3795.7,2.63453]
[1717319755289,0.10629427,3796.3,3795.8,0.263453]
[1717319755617,0.10629427,3796.3,3795.8,2.63448]
[1717319755918,2.63386,3796.8,3795.8,2.63448]
[1717319756075,0.10632362,3796.2,3795.8,2.63448]
[1717319756277,2.63386,3796.8,3795.8,2.63448]
[1717319756597,0.10640448,3796.7,3796.1,2.63427]
[1717319756773,0.10640448,3796.7,3796.2,0.05267956]
[1717319756974,0.10640448,3796.7,3796.3,2.6341]
[1717319757405,1.64837756,3797.7,3796.1,1.329]
[1717319757710,2.3068,3797.6,3796.4,2.63401]
[1717319758021,2.3068,3797.6,3796.2,0.1329]
[1717319758022,2.63346,3797.3,3796.2,0.1329]
[1717319758173,0.10665878,3797.6,3796.6,2.6339]
[1717319758375,0.10660641,3797.2,3796.8,2.63376]
[1717319758614,2.63292,3798.1,3796.8,2.63376]
[1717319758786,2.6332,3797.7,3796.9,0.289715]
[1717319758993,0.10682681,3798.0,3797.0,2.63365]
[1717319759324,2.63306,3797.9,3797.0,2.63365]
[1717319759492,2.73988293,3797.9,3797.2,2.63351]
[1717319759880,2.73988293,3797.9,3796.6,3.96289]
[1717319760174,2.73988293,3797.9,3797.1,2.63356]
[1717319760379,2.73988293,3797.9,3797.2,0.263356]
[1717319760579,2.73988293,3797.9,3796.7,3.0]
[1717319760805,2.73988293,3797.9,3796.6,3.0]
[1717319761216,2.73988293,3797.9,3796.9,2.63366]
[1717319762811,2.73988293,3797.9,3797.2,2.6335]
[1717319763229,0.10682293,3797.9,3797.2,2.6335]
[1717319763515,2.6328,3798.3,3797.5,2.63327]
[1717319763812,0.10389128,3797.8,3797.5,2.63327]
[1717319764001,2.6328,3798.3,3797.5,2.63327]
[1717319764203,0.10387512,3797.7,3797.5,2.63327]
[1717319764402,2.6328,3798.3,3797.5,2.63327]
[1717319764619,0.10390449,3797.6,3797.5,2.63327]
[1717319764822,2.6328,3798.3,3797.5,2.63327]
[1717319765225,0.10400146,3798.2,3797.5,2.63327]
[1717319766199,2.3768,3798.8,3797.5,2.63327]
[1717319766200,2.63274,3798.4,3797.5,2.63327]
[1717319766732,0.10412289,3798.3,3797.5,2.63327]
[1717319766939,0.10412289,3798.3,3797.6,0.612616]
[1717319767097,5.00924,3798.8,3797.6,0.612616]
[1717319767298,5.00924,3798.8,3797.5,2.63327]
[1717319767299,0.10428995,3798.7,3797.5,2.63327]
[1717319767910,2.63259,3798.6,3797.8,2.63309]
[1717319768112,0.10428995,3798.7,3797.8,3.96209]
[1717319768399,0.10429745,3798.5,3797.9,0.625749]
[1717319768545,2.48111361,3798.6,3797.9,0.625749]
[1717319768747,2.48111361,3798.6,3797.3,4.82189]
[1717319768748,2.63269,3798.4,3797.3,0.49289]
[1717319768954,2.63269,3798.4,3796.8,2.63379]
[1717319768955,2.63304,3797.9,3796.8,2.63379]
[1717319769108,2.63304,3797.9,3796.9,3.0]
[1717319769307,0.10418433,3797.8,3797.0,2.63363]
[1717319769516,0.10418433,3797.8,3797.3,2.6334]
[1717319769745,0.10418433,3797.8,3797.4,0.26334]
[1717319769921,2.63313,3797.8,3796.9,5.63367]
[1717319770247,2.63247,3798.8,3796.2,0.1329]
[1717319770248,2.63348,3797.3,3796.2,0.1329]
[1717319770411,2.63348,3797.3,3796.0,2.63431]
[1717319770611,0.10412263,3797.2,3796.0,2.63431]
[1717319771220,0.10412263,3797.2,3796.2,2.6342]
[1717319771547,0.10412263,3797.2,3796.3,0.26342]
[1717319771734,2.63348,3797.3,3796.3,0.26342]
[1717319771935,2.63348,3797.3,3796.4,2.63404]
[1717319772154,0.10401853,3797.2,3796.4,2.63404]
[1717319773247,2.63361,3797.1,3796.0,2.63433]
[1717319773558,0.10377676,3797.0,3796.1,3.696333]
[1717319773731,0.10377676,3797.0,3796.2,2.63418]
[1717319773927,2.3768,3796.9,3796.1,3.696333]
[1717319774129,2.3768,3796.9,3796.1,0.696333]
[1717319774475,2.63382,3796.8,3796.1,0.696333]
[1717319774775,2.73751888,3796.8,3796.1,0.696333]
[1717319774924,2.73751888,3796.8,3795.8,2.63447]
[1717319775628,2.73751888,3796.8,3795.5,3.0]
[1717319775957,0.10369888,3796.8,3795.6,2.63456]
[1717319776143,0.10369888,3796.8,3795.7,3.0]
[1717319776327,0.10369888,3796.8,3795.9,2.63441]
[1717319776655,0.10369888,3796.8,3796.0,3.0]
[1717319777562,0.10369888,3796.8,3795.7,0.563456]
[1717319777730,0.10369888,3796.8,3795.3,2.63481]
[1717319778065,2.6341,3796.4,3795.6,2.63458]
[1717319778463,0.10345496,3796.3,3795.6,2.63458]
[1717319778639,0.10345496,3796.3,3795.2,3.96387]
[1717319778960,0.10345496,3796.3,3795.6,2.63462]
[1717319779270,2.63423,3796.2,3795.3,0.1329]
[1717319779564,0.10341406,3796.1,3795.4,2.63476]
[1717319779865,0.10341406,3796.1,3795.5,3.840252]
[1717319780763,2.63395,3796.6,3795.6,2.6346]
[1717319781077,0.10339788,3796.0,3795.7,3.0]
[1717319781372,0.1033504,3795.9,3795.7,3.9474852]
[1717319781531,0.1033504,3795.9,3795.7,3.0]
[1717319781731,2.63395,3796.6,3795.7,3.0]
[1717319782052,0.10333422,3795.8,3795.7,3.56346]
[1717319782254,2.63395,3796.6,3795.7,3.56346]
[1717319782437,2.63395,3796.6,3795.8,2.63446]
[1717319782638,0.10344748,3796.5,3795.8,2.63446]
[1717319782874,0.10344748,3796.5,3796.0,2.63431]
[1717319783163,0.1034199,3796.4,3795.7,3.56346]
[1717319783536,2.6338,3796.8,3795.9,2.63437]
[1717319783752,0.10296831,3796.3,3795.9,2.63437]
[1717319783933,2.6338,3796.8,3795.9,2.63437]
[1717319784139,0.10307455,3796.2,3795.7,3.0]
[1717319784331,2.63403,3796.5,3795.3,1.329]
[1717319784564,0.10305837,3796.1,3795.7,2.63453]
[1717319784744,1.64837756,3797.0,3795.8,5.58744123]
[1717319784933,1.64837756,3797.0,3796.8,2.63373]
[1717319785172,2.2536,3797.7,3796.9,3.0]
[1717319785476,2.2536,3797.7,3797.0,0.563373]
[1717319785632,2.63329,3797.6,3796.9,3.0]
[1717319785829,2.63329,3797.6,3796.5,3.0]
[1717319786243,2.2536,3797.7,3796.8,2.63377]
[1717319786443,2.63313,3797.8,3796.9,0.263377]
[1717319786642,2.63313,3797.8,3796.9,3.263377]
[1717319786947,2.63333,3797.5,3796.4,3.96307]
[1717319787160,2.63333,3797.5,3796.5,3.0]
[1717319787361,2.63333,3797.5,3796.6,2.63389]
[1717319787573,2.63333,3797.5,3796.7,3.0]
[1717319788097,2.6336,3797.1,3796.3,3.0]
[1717319788745,2.6336,3797.1,3795.9,4.329]
[1717319788960,2.6336,3797.1,3796.1,2.63426]
[1717319789156,2.6336,3797.1,3796.2,3.0]
[1717319789693,2.63334,3797.5,3796.4,2.63406]
[1717319789878,2.63334,3797.5,3796.5,0.563406]
[1717319790085,2.63354,3797.2,3796.5,0.563406]
[1717319790285,2.63354,3797.2,3796.2,3.0]
[1717319790485,2.63354,3797.2,3796.1,3.0]
[1717319790685,2.63354,3797.2,3796.4,2.63405]
[1717319791562,2.63328,3797.6,3796.4,2.63405]
[1717319791758,2.63355,3797.2,3796.5,0.263405]
[1717319791983,2.63355,3797.2,3796.4,2.63405]
[1717319792187,0.10242753,3797.1,3796.4,2.63405]
[1717319792389,2.63366,3797.0,3796.1,3.0]
[1717319792597,2.63366,3797.0,3796.2,0.696329]
[1717319792767,0.10239519,3796.9,3796.3,2.63412]
[1717319793298,2.63438,3796.0,3795.1,2.63493]
[1717319793662,0.10222203,3795.9,3795.1,2.63493]
[1717319793989,2.2536,3795.8,3795.1,2.63493]
[1717319794188,2.35580584,3795.8,3795.1,2.63493]
[1717319794399,2.35580584,3795.8,3794.7,3.96421]
[1717319794708,2.63466,3795.6,3794.7,2.63521]